[Event "45th FIDE Womens Olympiad 2024"]
[Site "Budapest"]
[Date "2024.09.16"]
[Round "6.129"]
[White "Wagener, Anna"]
[Black "Clarke, Adani"]
[Result "1-0"]
[ECO "C11"]
[WhiteElo "2251"]
[BlackElo "1919"]
[Annotator "TA"]
[PlyCount "119"]
[EventDate "2024.09.05"]
[EventType "team-tourn"]
[EventCountry "HUN"]
[SourceTitle "playchess.com"]
[Source "ChessBase"]
[SourceQuality "1"]
[WhiteTeam "Luxembourg"]
[BlackTeam "Jamaica"]
[WhiteTeamCountry "LUX"]
[BlackTeamCountry "JAM"]
[TimeControl "40/5400+30:1800+30"]

{[%evp 14,118,-12,-17,22,0,0,14,8,0,4,0,0,-14,17,25,30,24,18,23,70,68,56,55,214,191,316,139,114,46,120,124,172,174,225,179,124,106,232,225,263,210,204,143,195,121,195,172,300,292,315,325,416,427,393,373,406,312,295,295,278,225,407,410,1000,0,340,335,350,226,338,336,445,430,381,356,396,295,433,433,719,710,709,676,1539,1199,29989,2242,29989,29990,29990,29991,29991,1487,29986,29987,29987,29986,29985,29986,29989,29988,29991,29992,29992,29991,29991]} 1. e4 {[%cal Be2e4,Be4e5][%mdl 32]} e6 2. Nf3 d5 3. Nc3 Nf6 4. e5 Nfd7 5. d4 c5 6. dxc5 Bxc5 7. Bd3 Nc6 8. Bf4 Nf8 {C11: French: Classical System: 4 e5 and 4 Bg5 dxe4.} 9. Qe2 Ng6 10. Bg3 Bd7 $146 ({Predecessor:} 10... a6 11. O-O-O b5 12. Bxg6 hxg6 13. Ne4 Be7 14. Nd6+ Bxd6 15. exd6 Qa5 16. Kb1 b4 {0-1 Ming,W (1834)-Lepine,C (2013) Francophone-ch 3rd 2015 (5)}) 11. O-O a6 12. Rad1 Rc8 13. Rfe1 Bb4 14. a3 Ba5 15. b4 Bb6 {[%cal Oc6b4]} 16. Qd2 Nd4 (16... O-O $11) 17. Nxd4 $14 Bxd4 18. Nxd5 $1 Nf8 $2 (18... exd5 $14 19. Bxg6 hxg6 (19... Bc3 $2 20. Bxf7+ Kxf7 21. Qxd5+ Be6 22. Qf3+ Kg6 23. Rxd8 $18) 20. Qxd4 Be6) 19. c3 Bxf2+ (19... exd5 $142 20. cxd4 h5) 20. Bxf2 (20. Kxf2 exd5 21. Bc2 Bg4 $16) (20. Qxf2 $18 {[%cal Oe1f1] and the rest is easy. aiming for Rf1!} exd5 21. Qa7) 20... exd5 $16 21. Bb1 (21. e6 $16 Nxe6 22. Bf5) 21... Be6 (21... Ba4 $14) 22. Ba2 Ng6 (22... Bg4 $16) 23. Bc5 $1 $18 (23. Bxd5 $6 Bxd5 24. Qxd5 Qxd5 25. Rxd5 Rxc3 $16) 23... Ne7 (23... b6 $142) 24. Qf2 (24. Qg5 Rxc5 25. bxc5 Qc7) 24... Qc7 25. Rd3 {White has more active pieces.} Qc6 (25... O-O $16 26. h4 Rfe8) 26. Rg3 Ng6 27. Rf3 Qc7 28. Qd4 Qd7 (28... Ne7 $16 29. Bb1 O-O) 29. Bb3 (29. Rg3 $18) 29... h5 (29... Ne7 $16 30. Rd1 b5) 30. Rd3 Rd8 (30... Ne7 {was worth a try.} 31. Qf2 Qb5) 31. Qf2 Qc6 32. a4 {[%cal Ba3a4,Ba4a5][%mdl 32]} Rc8 33. a5 Ne7 34. Rg3 Rh7 35. Qc2 Bf5 36. Qd1 Qe6 37. Qd2 Rd8 $2 (37... Rxc5 38. bxc5 h4) 38. Rf3 (38. Ba4+ Nc6 39. Rg5 Be4 $18) 38... Qg6 (38... g6 $142 39. Rf4 Qc8 40. Ba4+ Bd7) 39. Rg3 $2 (39. Bxe7 Kxe7 40. Qf2 (40. Bxd5 h4 $18)) 39... Qe6 40. Qg5 (40. Ba4+ Nc6 41. h3 Be4) 40... Nc6 41. Qe3 Rd7 (41... h4 $142) 42. Qf2 Kd8 43. Rf3 g6 44. Rfe3 Kc8 45. Qd2 {And now Bd6 would win.} Rh8 (45... Rd8 {keeps fighting.} 46. h3 Qd7) 46. Bd6 Ne7 (46... Rxd6 $142 47. exd6 Qd7 48. Qxd5 Rd8) 47. Qd4 {[%cal Ob4b5] Black must now prevent b5!} Nc6 48. Qc5 (48. Qxd5 Qxd5 49. Bxd5 Rhd8 $18) 48... Qe8 49. Bxd5 {[%cal Ob4b5] b5! is the strong threat.} Rd8 50. c4 (50. b5 $142 axb5 51. a6 (51. Qxb5 Qd7 $18) 51... Kd7 52. axb7 Rc8 53. Rd1 (53. bxc8=R Qxc8 54. e6+ Bxe6 55. Rxe6 fxe6 56. Bxe6+ Ke8 57. Bxc8+ Kf7 58. Qxc6 Rd8 59. Qc7+ Rd7 60. Qxd7+ Kg8 61. Re8#) (53. Qxb5 Rc7 $18) 53... Bd3 54. Rexd3 (54. bxc8=R Qxc8 55. Rdxd3 Rh7) (54. Rdxd3 Qe6 55. Bxe6+ Kxe6) 54... Qe6 55. b8=Q (55. Bxe6+ Kxe6 56. Qd5+ Kd7 57. Bb8+ Ke7 58. Qd6+ Ke8 59. bxc8=Q+ Nd8 60. Qdxd8#)) 50... Kd7 51. Qb6 {[%cal Rb6b7]} Rc8 52. Qxb7+ Kd8 53. Qxa6 (53. Qb6+ $142 Kd7 54. Rd1 (54. Qxa6 h4 $18) 54... Qd8 55. e6+ (55. Qxa6 Ke8 $18) (55. Bxc6+ Ke6 56. Bd5+ Kd7 57. e6+ fxe6) 55... fxe6 56. Bxc6+ Rxc6 57. Bf8+ Rd6 58. Rxd6+ (58. Qxd6+ Ke8 59. Qxd8+ Kf7 60. Qe7+ Kg8 61. Qg7#) 58... Ke8 59. Qxd8+ (59. Rxd8+ Kf7 60. Qc7+ Kg8 61. Bh6#) 59... Kf7 60. Qe7+ Kg8 61. Qg7#) 53... Be6 54. Qb6+ Kd7 55. Qb7+ Kd8 56. b5 {[%cal Bb4b5,Bb5b6][%mdl 32]} Bxd5 57. cxd5 Nd4 58. Qb6+ Kd7 59. Qxd4 Qd8 60. b6 1-0

[Event "45th FIDE Womens Olympiad 2024"]
[Site "Budapest"]
[Date "2024.09.16"]
[Round "6.130"]
[White "Brown, Raehanna"]
[Black "Steil-Antoni, Fiona"]
[Result "1/2-1/2"]
[ECO "A25"]
[WhiteElo "1910"]
[BlackElo "2085"]
[Annotator "NA"]
[PlyCount "66"]
[EventDate "2024.09.05"]
[EventType "team-tourn"]
[EventCountry "HUN"]
[SourceTitle "playchess.com"]
[Source "ChessBase"]
[SourceQuality "1"]
[WhiteTeam "Jamaica"]
[BlackTeam "Luxembourg"]
[WhiteTeamCountry "JAM"]
[BlackTeamCountry "LUX"]
[TimeControl "40/5400+30:1800+30"]

1. c4 e5 2. Nc3 Nc6 3. g3 f5 4. Bg2 Nf6 5. d3 Bb4 6. e3 Bxc3+ 7. bxc3 O-O 8. Ne2 d6 9. O-O Qe8 10. f4 e4 11. Nd4 exd3 12. Qxd3 Ne4 13. Ba3 Kh8 14. g4 g6 15. Rab1 b6 16. Rb2 a6 17. Bf3 Bd7 18. Rg2 Qe7 19. gxf5 gxf5 20. c5 dxc5 21. Nxc6 Bxc6 22. c4 Rad8 23. Qb3 h6 24. Bb2+ Kh7 25. Rg7+ Qxg7+ 26. Bxg7 Rg8 27. Rd1 Rxg7+ 28. Kf1 Rxd1+ 29. Qxd1 Rd7 30. Qc2 Nd2+ 31. Kf2 Nxf3 32. Qxf5+ Kg7 33. Qe6 Rd2+ 1/2-1/2

[Event "45th FIDE Womens Olympiad 2024"]
[Site "Budapest"]
[Date "2024.09.16"]
[Round "6.131"]
[White "Bakalarz, Grazyna"]
[Black "Watson, Gabriella"]
[Result "1/2-1/2"]
[ECO "D13"]
[WhiteElo "1928"]
[BlackElo "1826"]
[Annotator "NA"]
[PlyCount "85"]
[EventDate "2024.09.05"]
[EventType "team-tourn"]
[EventCountry "HUN"]
[SourceTitle "playchess.com"]
[Source "ChessBase"]
[SourceQuality "1"]
[WhiteTeam "Luxembourg"]
[BlackTeam "Jamaica"]
[WhiteTeamCountry "LUX"]
[BlackTeamCountry "JAM"]
[TimeControl "40/5400+30:1800+30"]

1. d4 d5 2. c4 c6 3. cxd5 cxd5 4. Nf3 Nf6 5. Nc3 Nc6 6. Bf4 a6 7. Rc1 e6 8. e3 Be7 9. Bd3 Bd7 10. Ne5 Rc8 11. O-O O-O 12. Qf3 Na5 13. Rc2 b5 14. Qh3 g6 15. Rfc1 Re8 16. Bg5 Nc4 17. f4 Nxe5 18. fxe5 Nh5 19. g4 Ng7 20. Bh6 Bc6 21. Rf1 f6 22. Bxg7 Kxg7 23. Rcf2 Rf8 24. exf6+ Rxf6 25. g5 Rxf2 26. Rxf2 Bxg5 27. Nd1 Qe7 28. Qg4 Be8 29. Rg2 Bf6 30. h3 Rc7 31. Nc3 b4 32. Ne2 a5 33. Nf4 Rc1+ 34. Kf2 Rc6 35. Nxg6 Bxg6 36. Bxg6 Kh8 37. Bd3 Qf7 38. Qf3 Rc1 39. Ke2 Rc8 40. Rf2 Rf8 41. Rg2 Bg7 42. Qg3 Qf6 43. Rf2 1/2-1/2

[Event "45th FIDE Womens Olympiad 2024"]
[Site "Budapest"]
[Date "2024.09.16"]
[Round "6.132"]
[White "McKoy, Arielle"]
[Black "Kremer, Nadine"]
[Result "0-1"]
[ECO "B04"]
[WhiteElo "1441"]
[BlackElo "1898"]
[Annotator "NA"]
[PlyCount "110"]
[EventDate "2024.09.05"]
[EventType "team-tourn"]
[EventCountry "HUN"]
[SourceTitle "playchess.com"]
[Source "ChessBase"]
[SourceQuality "1"]
[WhiteTeam "Jamaica"]
[BlackTeam "Luxembourg"]
[WhiteTeamCountry "JAM"]
[BlackTeamCountry "LUX"]
[TimeControl "40/5400+30:1800+30"]

1. e4 Nf6 2. e5 Nd5 3. d4 d6 4. Nf3 g6 5. Bc4 c6 6. O-O Bg7 7. c3 O-O 8. Re1 Be6 9. Ng5 dxe5 10. Nxe6 fxe6 11. dxe5 Qb6 12. Qd4 Qc7 13. Nd2 b5 14. Bb3 c5 15. Qg4 Rf5 16. Nf3 Nc6 17. Bc2 Nxe5 18. Nxe5 Rxe5 19. Bd2 Nf6 20. Qh3 Kf7 21. Qf3 Rd8 22. Bf4 Rxe1+ 23. Rxe1 Qb6 24. Bg5 Rd5 25. h4 h6 26. Bxf6 exf6 27. Qg4 f5 28. Qf3 Qd6 29. g4 Rd2 30. Bb1 Qd5 31. Qxd5 Rxd5 32. g5 hxg5 33. hxg5 Rd2 34. b4 cxb4 35. cxb4 Bd4 36. Rf1 Rb2 37. a3 Bxf2+ 38. Rxf2 Rxb1+ 39. Kg2 e5 40. Rc2 f4 41. Rc7+ Ke6 42. Rxa7 Kf5 43. Re7 e4 44. Kh3 e3 45. Rf7+ Ke4 46. Rf6 Kf3 47. Kh2 e2 48. Re6 e1=Q 49. Rxe1 Rxe1 50. a4 bxa4 51. b5 a3 52. b6 a2 53. b7 Re2+ 54. Kh3 a1=Q 55. b8=Q Qh1# 0-1

[Event "45th FIDE Womens Olympiad 2024"]
[Site "Budapest"]
[Date "2024.09.16"]
[Round "6.133"]
[White "Rouda Essa, Alserkal"]
[Black "Ortiz Verdezoto, Anahi"]
[Result "1-0"]
[ECO "C95"]
[WhiteElo "2036"]
[BlackElo "2229"]
[Annotator "TA"]
[PlyCount "79"]
[EventDate "2024.09.05"]
[EventType "team-tourn"]
[EventCountry "HUN"]
[SourceTitle "playchess.com"]
[Source "ChessBase"]
[SourceQuality "1"]
[WhiteTeam "United Arab Emirates"]
[BlackTeam "Ecuador"]
[WhiteTeamCountry "UAE"]
[BlackTeamCountry "ECU"]
[TimeControl "40/5400+30:1800+30"]

{[%evp 21,79,13,26,0,2,4,25,12,15,6,27,0,25,9,63,0,-8,-9,1,-14,59,54,43,53,99,42,65,37,111,88,219,233,306,236,279,287,281,281,300,293,338,352,358,337,350,354,347,318,470,476,661,604,641,643,803,802,927,859,1311,1289]} 1. e4 e5 2. Nf3 Nc6 3. Bb5 a6 4. Ba4 Nf6 5. O-O d6 6. Re1 Be7 7. c3 O-O 8. h3 b5 9. Bb3 Nb8 10. d4 Nbd7 11. Nbd2 {[%cal Bb1d2,Bd2f1,Bf1g3][%mdl 32]} c5 12. d5 c4 13. Bc2 Nc5 14. Nf1 {White has an edge.} Qc7 15. Ng3 a5 16. Be3 Rb8 17. Nd2 b4 (17... a4 $11) 18. f4 ({White should try} 18. cxb4 $14 Rxb4 19. a3 Rxb2 20. Nxc4) 18... bxc3 $11 19. bxc3 exf4 20. Bxf4 Nd3 ({Better is} 20... g6 $11) 21. Bxd3 $14 cxd3 22. c4 Qc5+ (22... Rb2 $14 {feels stronger.}) 23. Kh2 (23. Kh1 $16) 23... Rb2 {[%cal Oc8h3]} 24. Qf3 Qa3 ({Black should play} 24... Nd7 $1 $14) 25. Nb3 $16 Qb4 {This costs Black the game.} (25... Nd7 $16) 26. Qxd3 $18 Bd8 27. Bd2 Qa4 28. Qc3 {[%csl LRa5,LRb2]} Rxd2 29. Nxd2 Qd7 30. Nb3 h5 {[%cal Bh7h5,Bh5h4][%mdl 32]} 31. Nxa5 h4 32. Nf1 Nh5 33. Rab1 Bf6 34. Qf3 Be5+ (34... Nf4 {keeps fighting.} 35. c5 (35. Qxf4 Be5 $16) 35... Ba6) 35. Kh1 {White is clearly winning.} Ng3+ 36. Nxg3 Bxg3 37. Rf1 f5 38. exf5 Qc7 39. Nc6 Bxf5 40. Nd4 {Weighted Error Value: White=0.18 (very precise) /Black=0.47.  Mistake:       	White=2     	Black=6      Inaccurate:     	White=1     	Black=2      OK:         	White=9     	Black=7      Best:        	White=3     	Black=1} 1-0

[Event "45th FIDE Womens Olympiad 2024"]
[Site "Budapest"]
[Date "2024.09.16"]
[Round "6.134"]
[White "Wagenschuetz, Evelyn"]
[Black "Al Maamari, Wafia Darwish"]
[Result "0-1"]
[ECO "C19"]
[WhiteElo "2036"]
[BlackElo "1908"]
[Annotator "ChessBase"]
[PlyCount "186"]
[EventDate "2024.09.05"]
[EventType "team-tourn"]
[EventCountry "HUN"]
[SourceTitle "playchess.com"]
[Source "ChessBase"]
[SourceQuality "1"]
[WhiteTeam "Ecuador"]
[BlackTeam "United Arab Emirates"]
[WhiteTeamCountry "ECU"]
[BlackTeamCountry "UAE"]
[TimeControl "40/5400+30:1800+30"]

1. e4 e6 2. d4 d5 3. Nc3 Bb4 4. e5 c5 5. Nf3 Nc6 6. a3 Bxc3+ 7. bxc3 Qa5 8. Bd2 Qa4 9. Bd3 c4 10. Be2 Nge7 11. O-O Bd7 12. Nh4 O-O-O 13. f4 Kb8 14. g4 g6 15. Kh1 Rdf8 16. Ra2 Ka8 17. Bf3 Qb5 18. Bc1 Qa5 19. Bd2 Qa4 20. Qe2 h6 21. Bc1 Rfg8 22. Ng2 Qa5 23. Bd2 Rd8 24. Rb1 Qa4 25. Ne3 Bc8 26. Nd1 Rh7 27. Bc1 Rdh8 28. Rab2 h5 29. g5 Nf5 30. Bg2 Rd8 31. Ra2 Rhh8 32. Nb2 Qa5 33. Bd2 Bd7 34. a4 Nce7 35. Nxc4 Qa6 36. Rab2 Bc6 37. Nb6+ axb6 38. Qe1 Nc8 39. Bf1 Qa7 40. Rb4 Kb8 41. Kg1 Kc7 42. Bd3 Nfe7 43. Qc1 Kd7 44. Qb2 Ke8 45. Kg2 Kf8 46. h4 Kg7 47. Kh3 Qb8 48. Qa3 Qc7 49. Qc1 Qd7 50. Qa3 Qe8 51. a5 bxa5 52. Qxa5 Qd7 53. Bc1 b6 54. Qa2 Bb7 55. Bb5 Qc7 56. Bd2 Nc6 57. Bxc6 Bxc6 58. Qa6 b5 59. R4b3 Nb6 60. Qa5 Ra8 61. Qb4 Nc4 62. Be1 Rhc8 63. Rc1 Ra4 64. Qc5 Be8 65. Qxc7 Rxc7 66. Kg3 Rca7 67. Kf2 Ra1 68. Rbb1 Rxb1 69. Rxb1 Ra2 70. Ke2 Rxc2+ 71. Kd3 Ra2 72. Rb4 Kf8 73. Rb1 Ke7 74. Rb4 Bc6 75. Rb1 Kd7 76. Rb4 Rb2 77. Rxb2 Nxb2+ 78. Kc2 Nc4 79. Bf2 b4 80. cxb4 Ba4+ 81. Kc3 Kc6 82. Bg1 Kb5 83. Bf2 Na3 84. Be1 Nc2 85. Bd2 Nxb4 86. Be3 Nc6 87. Bc1 Bd1 88. Bb2 Ne7 89. Bc1 Nf5 90. Bd2 Nxh4 91. Be3 Ng2 92. Bf2 Nxf4 93. Kd2 Bg4 0-1

[Event "45th FIDE Womens Olympiad 2024"]
[Site "Budapest"]
[Date "2024.09.16"]
[Round "6.135"]
[White "Anoud, Eisa Bashkardi"]
[Black "Miranda Vargas, Analia Karen"]
[Result "1-0"]
[ECO "C60"]
[WhiteElo "1810"]
[BlackElo "1891"]
[Annotator "NA"]
[PlyCount "35"]
[EventDate "2024.09.05"]
[EventType "team-tourn"]
[EventCountry "HUN"]
[SourceTitle "playchess.com"]
[Source "ChessBase"]
[SourceQuality "1"]
[WhiteTeam "United Arab Emirates"]
[BlackTeam "Ecuador"]
[WhiteTeamCountry "UAE"]
[BlackTeamCountry "ECU"]
[TimeControl "40/5400+30:1800+30"]

1. e4 e5 2. Nf3 Nc6 3. Bb5 g6 4. d4 exd4 5. Nxd4 Bg7 6. Be3 Qe7 7. Nc3 Qb4 8. Bxc6 bxc6 9. Qd2 Ba6 10. O-O-O Nf6 11. Nb3 Bc4 12. Qd4 c5 13. Qe5+ Be6 14. Nd5 Nh5 15. Nxc7+ Kd8 16. Nxe6+ fxe6 17. Rxd7+ Kxd7 18. Rd1+ 1-0

[Event "45th FIDE Womens Olympiad 2024"]
[Site "Budapest"]
[Date "2024.09.16"]
[Round "6.136"]
[White "Guerrero Caicedo, Arlette"]
[Black "Almaamari, Zainab Darwish"]
[Result "1/2-1/2"]
[ECO "A46"]
[WhiteElo "1868"]
[BlackElo "1661"]
[Annotator "NA"]
[PlyCount "62"]
[EventDate "2024.09.05"]
[EventType "team-tourn"]
[EventCountry "HUN"]
[SourceTitle "playchess.com"]
[Source "ChessBase"]
[SourceQuality "1"]
[WhiteTeam "Ecuador"]
[BlackTeam "United Arab Emirates"]
[WhiteTeamCountry "ECU"]
[BlackTeamCountry "UAE"]
[TimeControl "40/5400+30:1800+30"]

1. d4 Nf6 2. Nf3 e6 3. g3 b5 4. a4 b4 5. Bg2 Bb7 6. O-O Be7 7. c3 c5 8. Nbd2 bxc3 9. bxc3 O-O 10. Qc2 Na6 11. Ba3 Rc8 12. Qd1 cxd4 13. cxd4 Bxa3 14. Rxa3 Nb4 15. Qb1 a5 16. Rc1 Ba6 17. Bf1 Qe7 18. Rac3 Rb8 19. Rb3 Rfc8 20. Qb2 Qe8 21. Rxc8 Rxc8 22. Rc3 Nfd5 23. Rxc8 Qxc8 24. Nb3 Qc3 25. Qxc3 Nxc3 26. e3 Bxf1 27. Kxf1 Nc6 28. Nfd2 Nxa4 29. Nc4 Nc3 30. Nbxa5 Nxa5 31. Nxa5 Kf8 1/2-1/2

[Event "45th FIDE Womens Olympiad 2024"]
[Site "Budapest"]
[Date "2024.09.16"]
[Round "6.137"]
[White "Maksimovic, Masa"]
[Black "Ampaire, Shakira"]
[Result "1-0"]
[ECO "B32"]
[WhiteElo "2093"]
[BlackElo "1839"]
[Annotator "NA"]
[PlyCount "109"]
[EventDate "2024.09.05"]
[EventType "team-tourn"]
[EventCountry "HUN"]
[SourceTitle "playchess.com"]
[Source "ChessBase"]
[SourceQuality "1"]
[WhiteTeam "Bosnia & Herzegovina"]
[BlackTeam "Uganda"]
[WhiteTeamCountry "BIH"]
[BlackTeamCountry "UGA"]
[TimeControl "40/5400+30:1800+30"]

1. e4 c5 2. Nf3 Nc6 3. d4 cxd4 4. Nxd4 e5 5. Nb5 a6 6. Nd6+ Bxd6 7. Qxd6 Qe7 8. Qd2 Nf6 9. Nc3 b5 10. f3 Bb7 11. a4 b4 12. Nd5 Nxd5 13. exd5 Nd4 14. Bc4 Qc5 15. b3 Bxd5 16. Bxd5 Qxd5 17. Bb2 Qc5 18. Bxd4 exd4 19. O-O-O Qc3 20. Qxd4 Qxd4 21. Rxd4 a5 22. Re1+ Kd8 23. Re5 Re8 24. Rxe8+ Kxe8 25. Rd5 Ke7 26. Kd2 Ke6 27. Rb5 Ra6 28. Kc1 f5 29. Kb2 g5 30. c3 bxc3+ 31. Kxc3 Rc6+ 32. Kb2 Ra6 33. Ka3 h6 34. b4 axb4+ 35. Kxb4 Rd6 36. a5 Rd2 37. a6 d6 38. a7 Rb2+ 39. Ka5 Rxg2 40. Kb6 Ra2 41. Ra5 Rxh2 42. a8=Q Rb2+ 43. Kc7 Rc2+ 44. Kd8 Rc5 45. Rxc5 dxc5 46. Qc6+ Ke5 47. Qxc5+ Kf4 48. Ke7 g4 49. fxg4 Kxg4 50. Kf6 f4 51. Qf2 f3 52. Ke5 h5 53. Ke4 Kh3 54. Kxf3 h4 55. Qg2# 1-0

[Event "45th FIDE Womens Olympiad 2024"]
[Site "Budapest"]
[Date "2024.09.16"]
[Round "6.138"]
[White "Amoko, Ivy Claire"]
[Black "Babic, Milana"]
[Result "0-1"]
[ECO "C10"]
[WhiteElo "1820"]
[BlackElo "2080"]
[Annotator "NA"]
[PlyCount "90"]
[EventDate "2024.09.05"]
[EventType "team-tourn"]
[EventCountry "HUN"]
[SourceTitle "playchess.com"]
[Source "ChessBase"]
[SourceQuality "1"]
[WhiteTeam "Uganda"]
[BlackTeam "Bosnia & Herzegovina"]
[WhiteTeamCountry "UGA"]
[BlackTeamCountry "BIH"]
[TimeControl "40/5400+30:1800+30"]

1. e4 e6 2. d4 d5 3. Nd2 dxe4 4. Nxe4 Nd7 5. Nf3 Ngf6 6. Nxf6+ Nxf6 7. Bd3 c5 8. O-O cxd4 9. Nxd4 Bc5 10. Nb3 Bd6 11. Bg5 Qc7 12. h3 h6 13. Bh4 Bd7 14. Bg3 Bxg3 15. fxg3 Qxg3 16. Qe2 O-O 17. Rf3 Qh4 18. Raf1 Bc6 19. Rf4 Qg3 20. Na5 Nd5 21. R4f3 Qd6 22. Nxc6 Qxc6 23. Qe4 f5 24. Qe5 Rae8 25. Kh1 a6 26. a3 Qc7 27. Qe2 Qb6 28. Qe5 Qc7 29. Qe2 Nf6 30. Re3 Qb6 31. Bc4 Ne4 32. Bd3 Qxb2 33. Bxe4 fxe4 34. Rxf8+ Rxf8 35. Rxe4 Qxa3 36. Rxe6 Qc1+ 37. Kh2 Qf4+ 38. Kg1 Qd4+ 39. Re3 Re8 40. Kf2 Rxe3 41. Qxe3 Qxe3+ 42. Kxe3 Kf7 43. Kd4 b6 44. c4 Ke6 45. g3 a5 0-1

[Event "45th FIDE Womens Olympiad 2024"]
[Site "Budapest"]
[Date "2024.09.16"]
[Round "6.139"]
[White "Jacimovic, Sara"]
[Black "Sana, Omprakash Kayyar"]
[Result "1/2-1/2"]
[ECO "C54"]
[WhiteElo "1981"]
[BlackElo "1937"]
[Annotator "ChessBase"]
[PlyCount "163"]
[EventDate "2024.09.05"]
[EventType "team-tourn"]
[EventCountry "HUN"]
[SourceTitle "playchess.com"]
[Source "ChessBase"]
[SourceQuality "1"]
[WhiteTeam "Bosnia & Herzegovina"]
[BlackTeam "Uganda"]
[WhiteTeamCountry "BIH"]
[BlackTeamCountry "UGA"]
[TimeControl "40/5400+30:1800+30"]

1. e4 e5 2. Nf3 Nc6 3. Bc4 Nf6 4. d3 Bc5 5. c3 d6 6. O-O a6 7. a4 Ba7 8. Nbd2 O-O 9. h3 h6 10. Re1 Re8 11. Nf1 Be6 12. Bxe6 Rxe6 13. Ng3 d5 14. Qc2 dxe4 15. dxe4 Ne7 16. Nf5 Ng6 17. g4 Qd7 18. Be3 Bxe3 19. Rxe3 Rd8 20. Kh2 Nf4 21. Rg1 Nh7 22. h4 Nf8 23. Kg3 Kh7 24. Nxe5 Rxe5 25. Kxf4 Qe8 26. Kg3 Ra5 27. b3 g6 28. Nd4 c5 29. Ne2 c4 30. Rf3 Kg7 31. Ra1 cxb3 32. Qxb3 Ne6 33. Qb4 Re5 34. Re3 Nc5 35. f3 Rd2 36. Nf4 Qb8 37. Kh3 g5 38. Re2 Nd3 39. Nxd3 Rxd3 40. Rf1 Qc7 41. h5 Qxc3 42. Qxc3 Rxc3 43. Kg2 b5 44. axb5 axb5 45. Rb2 Rec5 46. Kg3 Rc2 47. Rb3 Ra2 48. f4 Ra4 49. fxg5 Rxg5 50. Kf4 Ra2 51. Rfb1 Rg2 52. Rg3 Rxg3 53. Kxg3 Rc5 54. Kf4 Kf6 55. Ra1 Rc6 56. Ra8 Rb6 57. Rh8 Kg7 58. Rd8 b4 59. e5 b3 60. Rd1 b2 61. Rb1 f6 62. e6 Rb5 63. e7 Kf7 64. Ke4 Kxe7 65. Kd4 Rb4+ 66. Kc3 Rxg4 67. Rxb2 Rg5 68. Rh2 Ke6 69. Kd4 Rg4+ 70. Ke3 Kf5 71. Kf3 Kg5 72. Rh1 f5 73. Rh2 Rb4 74. Rh1 Rb3+ 75. Kf2 f4 76. Ra1 Kxh5 77. Rg1 Kh4 78. Rg8 h5 79. Rg7 Rg3 80. Rf7 Kg4 81. Rg7+ Kf5 82. Rxg3 1/2-1/2

[Event "45th FIDE Womens Olympiad 2024"]
[Site "Budapest"]
[Date "2024.09.16"]
[Round "6.140"]
[White "Takali, Milly"]
[Black "Mahmutbegovic Smajilbasic, Nadina"]
[Result "1-0"]
[ECO "B13"]
[WhiteElo "1707"]
[BlackElo "1973"]
[Annotator "NA"]
[PlyCount "101"]
[EventDate "2024.09.05"]
[EventType "team-tourn"]
[EventCountry "HUN"]
[SourceTitle "playchess.com"]
[Source "ChessBase"]
[SourceQuality "1"]
[WhiteTeam "Uganda"]
[BlackTeam "Bosnia & Herzegovina"]
[WhiteTeamCountry "UGA"]
[BlackTeamCountry "BIH"]
[TimeControl "40/5400+30:1800+30"]

1. d4 d5 2. Bf4 c5 3. e3 cxd4 4. exd4 Nc6 5. Nf3 Nf6 6. Bd3 g6 7. c3 Nh5 8. Be3 Bg7 9. Nbd2 O-O 10. h3 Qd6 11. O-O f5 12. Nb3 f4 13. Bd2 e5 14. dxe5 Nxe5 15. Be2 Nc4 16. Bc1 Qd8 17. Nfd4 Nf6 18. Bxc4 dxc4 19. Nd2 Qd5 20. Qf3 Qxf3 21. N2xf3 Nd5 22. Bd2 Bd7 23. Rfe1 Rae8 24. Ng5 Bxd4 25. cxd4 h6 26. Ne4 b5 27. Nc5 Bc8 28. Re5 Rxe5 29. dxe5 Re8 30. Re1 g5 31. Ne4 Bd7 32. Bc3 Nxc3 33. Nf6+ Kf7 34. Nxe8 Bxe8 35. bxc3 Ke6 36. a3 Bg6 37. g3 fxg3 38. fxg3 h5 39. Kf2 Bf5 40. Kg2 g4 41. h4 Kd5 42. Kf2 a5 43. Ke3 Kxe5 44. Rf1 Be6 45. Rf8 Kd5 46. Rh8 Bf7 47. Ra8 a4 48. Rb8 Kc6 49. Kd4 Bg6 50. Rf8 Bd3 51. Rf6+ 1-0

[Event "45th FIDE Womens Olympiad 2024"]
[Site "Budapest"]
[Date "2024.09.16"]
[Round "6.141"]
[White "Castillo Pena, Patricia Evarista"]
[Black "Toth, Lili"]
[Result "1/2-1/2"]
[ECO "D04"]
[WhiteElo "1928"]
[BlackElo "2105"]
[Annotator "NA"]
[PlyCount "85"]
[EventDate "2024.09.05"]
[EventType "team-tourn"]
[EventCountry "HUN"]
[SourceTitle "playchess.com"]
[Source "ChessBase"]
[SourceQuality "1"]
[WhiteTeam "Dominican Republic"]
[BlackTeam "Hungary C"]
[WhiteTeamCountry "DOM"]
[TimeControl "40/5400+30:1800+30"]

1. d4 Nf6 2. Nf3 d5 3. e3 c5 4. Bd3 Nc6 5. b3 cxd4 6. exd4 Bg4 7. Bb2 Qa5+ 8. c3 Bxf3 9. gxf3 Qc7 10. Na3 g6 11. Qd2 Bg7 12. Nc2 O-O 13. h4 Nh5 14. O-O-O Qf4 15. Qxf4 Nxf4 16. Ne3 Nxd3+ 17. Rxd3 e6 18. h5 f5 19. hxg6 hxg6 20. f4 Rac8 21. Kb1 Kf7 22. Ng2 Rh8 23. Rdh3 Rxh3 24. Rxh3 Nb8 25. Ne1 Rh8 26. Rxh8 Bxh8 27. Nf3 Nc6 28. Kc2 Bf6 29. Ba3 Ke8 30. Kd3 Kd7 31. Bf8 Nd8 32. c4 Nf7 33. Bb4 g5 34. fxg5 Nxg5 35. Nxg5 Bxg5 36. Bd2 Bf6 37. Bf4 Ke7 38. Be5 Bg5 39. f4 Bh4 40. b4 a6 41. a4 Kd7 42. b5 axb5 43. axb5 1/2-1/2

[Event "45th FIDE Womens Olympiad 2024"]
[Site "Budapest"]
[Date "2024.09.16"]
[Round "6.142"]
[White "Gombocz, Zsofia"]
[Black "Diaz Cesar, Wilsaida Pieranlly"]
[Result "1-0"]
[ECO "C41"]
[WhiteElo "2061"]
[BlackElo "1900"]
[Annotator "NA"]
[PlyCount "89"]
[EventDate "2024.09.05"]
[EventType "team-tourn"]
[EventCountry "HUN"]
[SourceTitle "playchess.com"]
[Source "ChessBase"]
[SourceQuality "1"]
[WhiteTeam "Hungary C"]
[BlackTeam "Dominican Republic"]
[BlackTeamCountry "DOM"]
[TimeControl "40/5400+30:1800+30"]

1. e4 e5 2. Nf3 d6 3. d4 exd4 4. Nxd4 Nf6 5. Nc3 Be7 6. Bf4 O-O 7. Qd2 a6 8. O-O-O b5 9. f3 c6 10. g4 b4 11. Na4 g6 12. Bh6 Re8 13. Nf5 Bxf5 14. gxf5 Qa5 15. b3 Nbd7 16. Rg1 Nc5 17. fxg6 hxg6 18. Bc4 d5 19. exd5 Nxa4 20. bxa4 cxd5 21. Bb3 Qc7 22. Bxd5 Nxd5 23. Qxd5 Qb6 24. a5 Qf6 25. Kb1 Rad8 26. Qe4 Rxd1+ 27. Rxd1 g5 28. Rd7 Qxh6 29. Rxe7 Rd8 30. Re8+ Rxe8 31. Qxe8+ Kg7 32. Qe5+ Qf6 33. Qxf6+ Kxf6 34. Kb2 Ke5 35. Kb3 Kf4 36. Kxb4 Kxf3 37. c4 Ke4 38. Kc5 Kd3 39. Kd5 f5 40. c5 f4 41. c6 f3 42. c7 f2 43. c8=Q Ke3 44. Qxa6 Kf3 45. Qf1 1-0